bitfinex/quotes_BTCUSD_20250616
["timestamp","ask_amount","ask_price","bid_price","bid_amount"]
[1750072310788,0.52113813,106940.0,106930.0,0.21609292]
[1750072312071,0.53048846,106940.0,106930.0,0.21609292]
[1750072312515,0.52113813,106940.0,106930.0,0.21609292]
[1750072313003,0.53048846,106940.0,106930.0,0.21609292]
[1750072313262,0.52113813,106940.0,106930.0,0.21609292]
[1750072314313,0.53048855,106940.0,106930.0,0.21609292]
[1750072314724,0.53983915,106940.0,106930.0,0.21609292]
[1750072315351,0.53983906,106940.0,106930.0,0.21609292]
[1750072315565,0.54918974,106940.0,106930.0,0.21609292]
[1750072316012,0.53983906,106940.0,106930.0,0.21609292]
[1750072316598,0.11561798,106940.0,106930.0,0.21609292]
[1750072316802,0.51757061,106940.0,106930.0,0.21609292]
[1750072317008,0.53983906,106940.0,106930.0,0.21609292]
[1750072318811,0.69295906,106940.0,106930.0,0.21609292]
[1750072319231,0.25003687,106940.0,106930.0,0.21609292]
[1750072319419,0.6613401,106940.0,106930.0,0.21609292]
[1750072319651,0.68360855,106940.0,106930.0,0.21609292]
[1750072320830,0.69295915,106940.0,106930.0,0.21609292]
[1750072321295,0.68360855,106940.0,106930.0,0.21609292]
[1750072321834,0.25003687,106940.0,106930.0,0.21609292]
[1750072322031,0.6613401,106940.0,106930.0,0.21609292]
[1750072322251,0.69295915,106940.0,106930.0,0.21609292]
[1750072322454,0.68360855,106940.0,106930.0,0.21609292]
[1750072322963,0.69295915,106940.0,106930.0,0.21609292]
[1750072323162,0.68360855,106940.0,106930.0,0.21609292]
[1750072324321,0.69295906,106940.0,106930.0,0.21609292]
[1750072327763,0.67785906,106940.0,106930.0,0.21609292]
[1750072330552,0.68720974,106940.0,106930.0,0.21609292]
[1750072330963,0.69656052,106940.0,106930.0,0.20674162]
[1750072331184,1.76919532,106940.0,106930.0,0.20674162]
[1750072331397,0.90205196,106940.0,106930.0,0.21609309]
[1750072331600,1.76919532,106940.0,106930.0,0.22544439]
[1750072331806,1.75984481,106940.0,106930.0,0.18803824]
[1750072332022,2.21292359,106940.0,106930.0,0.001]
[1750072332245,1.78861415,106940.0,106930.0,0.001]
[1750072332460,1.84430906,106940.0,106930.0,0.001]
[1750072332668,1.85083281,106940.0,106930.0,0.001]
[1750072332878,1.85083301,106940.0,106930.0,0.001]
[1750072333314,2.28440469,106940.0,106930.0,0.001]
[1750072333791,2.27788074,106940.0,106930.0,0.001]
[1750072333999,2.28440459,106940.0,106930.0,0.001]
[1750072334219,1.85083291,106940.0,106930.0,0.001]
[1750072334428,1.84430906,106940.0,106930.0,0.001]
[1750072335093,1.8508329,106940.0,106930.0,0.001]
[1750072335520,2.27788074,106940.0,106930.0,0.001]
[1750072335733,2.29896073,106940.0,106930.0,0.001]
[1750072335933,2.25529165,106940.0,106930.0,0.001]
[1750072336094,2.26183075,106940.0,106930.0,0.001]
[1750072336292,2.29898002,106940.0,106930.0,0.001]
[1750072336909,2.29244092,106940.0,106930.0,0.001]
[1750072337160,2.26183075,106940.0,106930.0,0.001]
[1750072337289,2.31183065,106940.0,106930.0,0.001]
[1750072337486,2.30529165,106940.0,106930.0,0.001]
[1750072337713,2.31183051,106940.0,106930.0,0.001]
[1750072337925,2.30883051,106940.0,106930.0,0.001]
[1750072338121,2.30229165,106940.0,106930.0,0.001]
[1750072338329,2.31383051,106940.0,106930.0,0.001]
[1750072338500,0.58661277,106920.0,106910.0,0.20577472]
[1750072338730,1.72534634,106920.0,106910.0,0.20577472]
[1750072339193,1.75345134,106920.0,106910.0,0.20577472]
[1750072339622,1.74409926,106920.0,106910.0,0.2057749]
[1750072339832,1.74509926,106920.0,106910.0,0.21512838]
[1750072340083,1.74509926,106920.0,106910.0,0.22448177]
[1750072340301,1.74509926,106920.0,106910.0,0.21512838]
[1750072340925,1.74509926,106920.0,106910.0,0.21712838]
[1750072341139,1.74509926,106920.0,106910.0,0.2077749]
[1750072341342,1.75164588,106920.0,106910.0,0.21712838]
[1750072341546,1.74509926,106920.0,106910.0,0.21712838]
[1750072341757,1.75164588,106920.0,106910.0,0.21712838]
[1750072341976,1.75164588,106920.0,106910.0,0.22648177]
[1750072342219,1.75164588,106920.0,106910.0,0.2077749]
[1750072342482,1.75164588,106920.0,106910.0,0.21712838]
[1750072342684,1.74509926,106920.0,106910.0,0.21712838]
[1750072343145,1.75164588,106920.0,106910.0,0.21712838]
[1750072343827,1.73574692,106920.0,106910.0,0.01135366]
[1750072344047,1.74229354,106920.0,106910.0,0.20778046]
[1750072344259,1.74229354,106920.0,106910.0,0.21713394]
[1750072344476,1.73574692,106920.0,106910.0,0.21713394]
[1750072345348,1.73574692,106920.0,106910.0,0.22648733]
[1750072347520,1.73574692,106920.0,106910.0,0.21713394]
[1750072347745,1.73574692,106920.0,106910.0,0.20778046]
[1750072348597,1.73574692,106920.0,106910.0,0.21713394]
[1750072348816,1.73574692,106920.0,106910.0,0.22648733]
[1750072349515,1.73574692,106920.0,106910.0,0.002]
[1750072349516,2.29981185,106920.0,106910.0,0.002]
[1750072349745,2.33418227,106920.0,106910.0,0.002]
[1750072349965,2.24136568,106920.0,106910.0,0.002]
[1750072350191,2.24136565,106920.0,106910.0,0.002]
[1750072350405,2.23484945,106920.0,106910.0,0.002]
[1750072350618,2.24136565,106920.0,106910.0,0.002]
[1750072350839,0.58156756,106910.0,106900.0,0.00047844]
[1750072351069,1.81943555,106910.0,106900.0,0.00047844]
[1750072351275,1.81291938,106910.0,106900.0,0.00047844]
[1750072351493,1.81943556,106910.0,106900.0,0.00047844]
[1750072351712,1.7638406,106910.0,106900.0,0.00047844]
[1750072352563,1.81291938,106910.0,106900.0,0.00047844]
[1750072352790,1.75732443,106910.0,106900.0,0.00047844]
[1750072353046,1.79495159,106910.0,106900.0,0.00047844]
[1750072353469,1.7949516,106910.0,106900.0,0.00047844]
[1750072353919,1.82273055,106910.0,106900.0,0.00047844]
[1750072354157,1.82673055,106910.0,106900.0,0.00147844]
[1750072354789,1.67369058,106910.0,106900.0,0.00147844]
[1750072355011,1.86653055,106910.0,106900.0,0.00147844]
[1750072355224,1.67369055,106910.0,106900.0,0.00147844]
[1750072355446,1.86653055,106910.0,106900.0,0.00147844]
[1750072355864,1.86653056,106910.0,106900.0,0.00147844]
[1750072356300,1.86653055,106910.0,106900.0,0.00147844]
[1750072356525,0.99287102,106910.0,106900.0,0.00147844]
[1750072356785,1.86653056,106910.0,106900.0,0.00147844]
[1750072357206,1.86001438,106910.0,106900.0,0.00147844]
[1750072357417,1.86653055,106910.0,106900.0,0.00147844]
[1750072357845,1.86001438,106910.0,106900.0,0.00147844]
[1750072358051,1.86653055,106910.0,106900.0,0.00147844]
[1750072358873,1.86653056,106910.0,106900.0,0.00147844]
[1750072359362,1.83875161,106910.0,106900.0,0.00147844]
[1750072359941,1.83223543,106910.0,106900.0,0.00147844]
[1750072360163,1.83875161,106910.0,106900.0,0.00147844]
[1750072360319,1.83223543,106910.0,106900.0,0.00147844]
[1750072360688,1.88783038,106910.0,106900.0,0.00147844]
[1750072364638,1.69499038,106910.0,106900.0,0.00147844]
[1750072365015,1.67979038,106910.0,106900.0,0.00147844]
[1750072365252,0.94513956,106910.0,106900.0,0.18856917]
[1750072365461,1.17320022,106910.0,106900.0,0.25242215]
[1750072365697,0.58654784,106910.0,106900.0,0.27113026]
[1750072365905,0.70256446,106910.0,106900.0,0.27113026]
[1750072366112,0.98305614,106910.0,106900.0,0.288635]
[1750072366324,1.13613614,106910.0,106900.0,0.288635]
[1750072366530,1.13613614,106910.0,106900.0,0.27113026]
[1750072366736,1.13613614,106910.0,106900.0,0.28863496]
[1750072366968,1.14548962,106910.0,106900.0,0.28863496]
[1750072367185,1.14548962,106910.0,106900.0,0.27113026]
[1750072367386,0.99240962,106910.0,106900.0,0.27113026]
[1750072367571,1.14548962,106910.0,106900.0,0.27113026]
[1750072368198,0.71191794,106910.0,106900.0,0.28863497]
[1750072368398,1.14548962,106910.0,106900.0,0.28863498]
[1750072368601,1.14548962,106910.0,106900.0,0.27113026]
[1750072369036,1.14556288,106910.0,106900.0,0.28863498]
[1750072370082,1.14556288,106910.0,106900.0,0.27113026]
[1750072370291,1.14556288,106910.0,106900.0,0.28863498]
[1750072370719,1.14552288,106910.0,106900.0,0.28863498]
[1750072370916,1.14552288,106910.0,106900.0,0.27113026]
[1750072371325,1.14552288,106910.0,106900.0,0.28863498]
[1750072371559,1.1361694,106910.0,106900.0,0.28863498]
[1750072371787,0.52142515,106910.0,106900.0,0.27113026]
[1750072372060,0.68381802,106910.0,106900.0,0.27113026]
[1750072372245,0.30666121,106910.0,106900.0,0.27113026]
[1750072372473,0.62439276,106910.0,106900.0,0.27113026]
[1750072372692,0.65601425,106910.0,106900.0,0.27113026]
[1750072372905,0.64666121,106910.0,106900.0,0.27113026]
[1750072373116,0.65601417,106910.0,106900.0,0.27113026]
[1750072373549,0.50297408,106910.0,106900.0,0.27113026]
[1750072373757,0.64901408,106910.0,106900.0,0.27013026]
[1750072373980,0.65101408,106910.0,106900.0,0.27113026]
[1750072374658,0.66036712,106910.0,106900.0,0.27113026]
[1750072375921,0.66136712,106910.0,106900.0,0.27113026]
[1750072376385,0.65201408,106910.0,106900.0,0.27113026]
[1750072376865,0.66136704,106910.0,106900.0,0.27113026]
[1750072378559,0.65201408,106910.0,106900.0,0.27113026]
[1750072380494,0.39337945,106910.0,106900.0,0.27113026]
[1750072380709,0.524151,106910.0,106900.0,0.27113026]
[1750072380922,0.54641945,106910.0,106900.0,0.27113026]
[1750072382591,0.39337945,106910.0,106900.0,0.27113026]
[1750072382796,0.371111,106910.0,106900.0,0.27113026]
[1750072394837,0.031111,106910.0,106900.0,0.27113026]
[1750072395095,0.371111,106910.0,106900.0,0.27113026]
[1750072398553,0.031111,106910.0,106900.0,0.27113026]
[1750072398780,0.3989583,106910.0,106900.0,0.27113026]
[1750072399407,0.40831117,106910.0,106900.0,0.27113026]
[1750072399802,0.3989583,106910.0,106900.0,0.27113026]
[1750072401131,0.3989583,106910.0,106900.0,0.25573026]
[1750072402375,0.40831126,106910.0,106900.0,0.25573026]
[1750072402589,0.3989583,106910.0,106900.0,0.27123026]
[1750072402931,0.40831134,106910.0,106900.0,0.27123026]
[1750072403153,0.40831117,106910.0,106900.0,0.27123026]
[1750072403563,0.3989583,106910.0,106900.0,0.27123026]
[1750072403946,0.3989583,106910.0,106900.0,0.25573026]
[1750072404155,0.40831134,106910.0,106900.0,0.25573026]
[1750072405509,0.40831126,106910.0,106900.0,0.25573026]
[1750072405948,0.3989583,106910.0,106900.0,0.25573026]
[1750072406365,0.40831126,106910.0,106900.0,0.25573026]
[1750072407605,0.3989583,106910.0,106900.0,0.25573026]
[1750072407922,0.40831126,106910.0,106900.0,0.25573026]
[1750072408131,0.3989583,106910.0,106900.0,0.25573026]
[1750072408345,0.3989583,106910.0,106900.0,0.70552117]
[1750072408556,0.40831117,106910.0,106900.0,0.70552117]
[1750072408802,0.3989583,106910.0,106900.0,0.70552117]
[1750072412228,0.3959583,106910.0,106900.0,0.70452117]
[1750072412665,0.3969583,106910.0,106900.0,0.70652117]
[1750072415671,0.3969583,106910.0,106900.0,0.27293026]
[1750072415914,0.3969583,106910.0,106900.0,0.70652117]
[1750072418999,0.3969583,106910.0,106900.0,0.27293026]
[1750072419443,0.3969583,106910.0,106900.0,0.70652117]
[1750072422722,0.83990217,106910.0,106900.0,0.25673026]
[1750072422948,0.87153314,106910.0,106900.0,0.25673026]
[1750072423181,0.88088671,106910.0,106900.0,0.22232233]
[1750072423407,1.00912847,106910.0,106900.0,0.23634034]
[1750072423632,1.04619168,106910.0,106900.0,0.23634034]
[1750072423849,1.05273483,106910.0,106900.0,0.23634034]
[1750072424099,1.034241,106910.0,106900.0,0.23634034]
[1750072424343,1.02769786,106910.0,106900.0,0.23634034]
[1750072424560,1.06214048,106910.0,106900.0,0.23634034]
[1750072424789,1.05559735,106910.0,106900.0,0.23634034]
[1750072425000,1.06214048,106910.0,106900.0,0.23634034]
[1750072425965,1.0621405,106910.0,106900.0,0.23634034]
[1750072426909,1.24921373,106910.0,106900.0,0.23634034]
[1750072427140,1.22396467,106910.0,106900.0,0.1989237]
[1750072427393,1.23050664,106910.0,106900.0,0.20827814]
[1750072427626,1.64539041,106910.0,106900.0,0.00247844]
[1750072427840,1.61094895,106910.0,106900.0,0.00247844]
[1750072428488,1.63700629,106910.0,106900.0,0.00247844]
[1750072428703,1.65154666,106910.0,106900.0,0.00247844]
[1750072429128,1.65154657,106910.0,106900.0,0.00247844]
[1750072429342,1.6304706,106910.0,106900.0,0.00247844]
[1750072429794,1.63700572,106910.0,106900.0,0.00247844]
[1750072430033,1.6304706,106910.0,106900.0,0.00247844]
[1750072430252,1.63700572,106910.0,106900.0,0.00247844]
[1750072431118,1.6304706,106910.0,106900.0,0.00247844]
[1750072431342,1.63700572,106910.0,106900.0,0.00247844]
[1750072432021,1.6304706,106910.0,106900.0,0.00247844]
[1750072432256,1.63700572,106910.0,106900.0,0.00247844]
[1750072432490,1.6304706,106910.0,106900.0,0.00247844]
[1750072432713,1.63700572,106910.0,106900.0,0.00247844]
[1750072433412,1.66760218,106910.0,106900.0,0.00247844]
[1750072433648,1.6741373,106910.0,106900.0,0.00247844]
[1750072434084,0.80695548,106910.0,106900.0,0.00247844]
[1750072434305,1.6741373,106910.0,106900.0,0.00247844]
[1750072434738,1.66760218,106910.0,106900.0,0.00247844]
[1750072434924,1.6741373,106910.0,106900.0,0.00247844]
[1750072435355,1.66661218,106910.0,106900.0,0.00247844]
[1750072435628,0.80596548,106910.0,106900.0,0.00247844]
[1750072436060,1.67314731,106910.0,106900.0,0.00247844]
[1750072436265,1.67314362,106910.0,106900.0,0.00247844]
[1750072438425,1.66661218,106910.0,106900.0,0.00247844]
[1750072438640,1.82673696,106910.0,106900.0,0.00247844]
[1750072439301,0.95303036,106910.0,106900.0,0.00247844]
[1750072439519,1.82021218,106910.0,106900.0,0.00247844]
[1750072440160,1.82673696,106910.0,106900.0,0.00247844]
[1750072441551,1.82673693,106910.0,106900.0,0.00247844]
[1750072442414,1.82021218,106910.0,106900.0,0.00247844]
[1750072442627,1.82673693,106910.0,106900.0,0.00247844]
[1750072442851,1.82021218,106910.0,106900.0,0.00247844]
[1750072443058,1.82673693,106910.0,106900.0,0.00247844]
[1750072443742,1.82021218,106910.0,106900.0,0.00247844]
[1750072443958,1.82673693,106910.0,106900.0,0.00247844]
[1750072444643,1.82673696,106910.0,106900.0,0.00247844]
[1750072444877,1.82021218,106910.0,106900.0,0.00247844]
[1750072445351,1.86641696,106910.0,106900.0,0.00247844]
[1750072446249,1.85989218,106910.0,106900.0,0.00247844]
[1750072446497,1.86641696,106910.0,106900.0,0.00247844]
[1750072446988,1.85989218,106910.0,106900.0,0.00247844]
[1750072447431,1.86641696,106910.0,106900.0,0.00247844]
[1750072447652,1.8664222,106910.0,106900.0,0.00247844]
[1750072448750,1.8227606,106910.0,106900.0,0.00247844]
[1750072448999,1.82929041,106910.0,106900.0,0.00247844]
[1750072449259,1.84383126,106910.0,106900.0,0.00247844]
[1750072449515,1.84482126,106910.0,106900.0,0.00247844]
[1750072449791,1.83829145,106910.0,106900.0,0.00247844]
[1750072450258,1.84283121,106910.0,106900.0,0.00147844]
[1750072450506,1.84030145,106910.0,106900.0,0.00247844]
[1750072450736,1.8468312,106910.0,106900.0,0.00247844]
[1750072450984,1.78723624,106910.0,106900.0,0.00047844]
[1750072451231,1.79123624,106910.0,106900.0,0.00147844]
[1750072451443,1.79423562,106910.0,106900.0,0.00147844]
[1750072451871,1.7942356,106910.0,106900.0,0.00147844]
[1750072452108,1.7877065,106910.0,106900.0,0.00147844]
[1750072452323,1.7942356,106910.0,106900.0,0.00147844]
[1750072452533,1.86860274,106910.0,106900.0,0.00147844]
[1750072453174,1.86207364,106910.0,106900.0,0.00147844]
[1750072453363,1.7877065,106910.0,106900.0,0.00147844]
[1750072453498,1.86207364,106910.0,106900.0,0.00147844]
[1750072454131,1.86860274,106910.0,106900.0,0.00147844]
[1750072455675,1.86207364,106910.0,106900.0,0.00147844]
[1750072455937,1.86860274,106910.0,106900.0,0.00147844]
[1750072456135,1.86207364,106910.0,106900.0,0.00147844]
[1750072456327,1.00142092,106910.0,106900.0,0.00147844]
[1750072456528,1.86860274,106910.0,106900.0,0.00147844]
[1750072456784,1.86207364,106910.0,106900.0,0.00147844]
[1750072456987,1.86860274,106910.0,106900.0,0.00147844]
[1750072457529,1.86207364,106910.0,106900.0,0.00147844]
[1750072457746,1.86860274,106910.0,106900.0,0.00147844]
[1750072458446,0.55517341,106890.0,106880.0,0.30057682]
[1750072458672,1.32584556,106890.0,106880.0,0.30924882]
[1750072459122,1.35395856,106890.0,106880.0,0.30924882]
[1750072459566,1.35395856,106890.0,106880.0,0.31860466]
[1750072459567,0.92036765,106890.0,106880.0,0.31860466]
[1750072459818,1.35395856,106890.0,106880.0,0.32896042]
[1750072460031,1.36331397,106890.0,106880.0,0.32896042]
[1750072460449,1.36431397,106890.0,106880.0,0.31241241]
[1750072460664,1.36431397,106890.0,106880.0,0.32996042]
[1750072461139,1.37370163,106890.0,106880.0,0.31241241]
[1750072461340,1.37370163,106890.0,106880.0,0.33931607]
[1750072461552,1.37370163,106890.0,106880.0,0.32176808]
[1750072461760,1.17723798,106890.0,106880.0,0.33931607]
[1750072462886,1.14004847,106890.0,106880.0,0.32176808]
[1750072463097,1.14004847,106890.0,106880.0,0.33931577]
[1750072463350,1.32715671,106890.0,106880.0,0.32176808]
[1750072463607,0.90292121,106890.0,106880.0,0.33931571]
[1750072463843,1.14004847,106890.0,106880.0,0.33931571]
[1750072464062,1.14004847,106890.0,106880.0,0.3393157]
[1750072464753,1.13069315,106890.0,106880.0,0.32176808]
[1750072464971,1.14004838,106890.0,106880.0,0.32176808]
[1750072465386,1.14004838,106890.0,106880.0,0.3393157]
[1750072465848,1.14004829,106890.0,106880.0,0.3393157]
[1750072466061,1.13069315,106890.0,106880.0,0.3393157]
[1750072466287,1.13069315,106890.0,106880.0,0.33931567]
[1750072466732,1.14004829,106890.0,106880.0,0.32176808]
[1750072466947,1.14004829,106890.0,106880.0,0.33931567]
[1750072467827,1.14004829,106890.0,106880.0,0.33932969]
[1750072468920,1.14940352,106890.0,106880.0,0.33932969]
[1750072469349,1.18659303,106890.0,106880.0,0.33932969]
[1750072470249,1.1772378,106890.0,106880.0,0.32176808]
[1750072470468,1.1772378,106890.0,106880.0,0.33932969]
[1750072470684,1.1772378,106890.0,106880.0,0.32176808]
[1750072470899,1.1772378,106890.0,106880.0,0.33932969]
[1750072471793,1.1772378,106890.0,106880.0,0.32176808]
[1750072472206,1.1772378,106890.0,106880.0,0.33932969]
[1750072472636,1.1772378,106890.0,106880.0,0.33932713]
[1750072472873,1.0237578,106890.0,106880.0,0.33932713]
[1750072473092,1.1771578,106890.0,106880.0,0.32176808]
[1750072473296,1.1771578,106890.0,106880.0,0.33932713]
[1750072473534,1.1771578,106890.0,106880.0,0.32176808]
[1750072473768,1.1771578,106890.0,106880.0,0.33932713]
[1750072474456,1.18651303,106890.0,106880.0,0.33932713]
[1750072474668,1.1771578,106890.0,106880.0,0.32176808]
[1750072474893,1.1771578,106890.0,106880.0,0.33932713]
[1750072475570,1.18651303,106890.0,106880.0,0.32176808]
[1750072475788,1.1771578,106890.0,106880.0,0.32176808]
[1750072476234,1.1771578,106890.0,106880.0,0.33932713]
[1750072477331,1.1771578,106890.0,106880.0,0.32176808]
[1750072477545,1.1771578,106890.0,106880.0,0.33932713]
[1750072477767,1.18651303,106890.0,106880.0,0.33932713]
[1750072478003,1.1771578,106890.0,106880.0,0.33932713]
[1750072478823,1.18651303,106890.0,106880.0,0.33932713]
[1750072479800,0.75280212,106890.0,106880.0,0.33932713]
[1750072480027,1.18639303,106890.0,106880.0,0.33932713]
[1750072480670,1.1770378,106890.0,106880.0,0.33932713]
[1750072481288,1.1770378,106890.0,106880.0,0.32176808]
[1750072481491,1.1770378,106890.0,106880.0,0.33932612]
[1750072481669,1.1770378,106890.0,106880.0,0.32176808]
[1750072481875,1.1770378,106890.0,106880.0,0.33932612]
[1750072482239,1.1770378,106890.0,106880.0,0.32176808]
[1750072482451,1.1770378,106890.0,106880.0,0.33932612]
[1750072482646,0.7153819,106890.0,106880.0,0.33932612]
[1750072482822,1.16768231,106890.0,106880.0,0.33932606]
[1750072483240,1.17703728,106890.0,106880.0,0.33932606]
[1750072483520,1.17703728,106890.0,106880.0,0.33932609]
[1750072484182,1.18639251,106890.0,106880.0,0.33932609]
[1750072484392,1.18639242,106890.0,106880.0,0.33932609]
[1750072484608,1.16772231,106890.0,106880.0,0.33932609]
[1750072484823,1.17707737,106890.0,106880.0,0.33932609]
[1750072485245,1.17707737,106890.0,106880.0,0.32176808]
[1750072485461,1.17707737,106890.0,106880.0,0.33932609]
[1750072485674,1.1864326,106890.0,106880.0,0.32176808]
[1750072485878,1.17707737,106890.0,106880.0,0.32176808]
[1750072486079,1.17707737,106890.0,106880.0,0.33932609]
[1750072486284,1.1864326,106890.0,106880.0,0.32176808]
[1750072486499,1.1864326,106890.0,106880.0,0.33932609]
[1750072486711,1.1864326,106890.0,106880.0,0.32176808]
[1750072487123,1.1864326,106890.0,106880.0,0.33932609]
[1750072487553,1.1864326,106890.0,106880.0,0.32176808]
[1750072488076,1.1864326,106890.0,106880.0,0.33932609]
[1750072488527,0.59952169,106890.0,106880.0,0.33932609]
[1750072488741,1.1863526,106890.0,106880.0,0.33932609]
[1750072488950,1.1863526,106890.0,106880.0,0.33933033]
[1750072489566,1.1863526,106890.0,106880.0,0.32176808]
[1750072489780,1.1863526,106890.0,106880.0,0.33932981]
[1750072491089,1.02375737,106890.0,106880.0,0.32176808]
[1750072491300,0.74332646,106890.0,106880.0,0.33932981]
[1750072491508,1.18627251,106890.0,106880.0,0.33932981]
[1750072491719,1.18627251,106890.0,106880.0,0.32176808]
[1750072491942,1.18627251,106890.0,106880.0,0.33932981]
[1750072492368,1.18627251,106890.0,106880.0,0.32176808]
[1750072492608,1.19562774,106890.0,106880.0,0.33932981]
[1750072492830,1.18627251,106890.0,106880.0,0.32176808]
[1750072493048,1.18627251,106890.0,106880.0,0.33932981]
[1750072493370,1.18635656,106890.0,106880.0,0.32176808]
[1750072493420,1.19571179,106890.0,106880.0,0.33932982]
[1750072493630,1.19571179,106890.0,106880.0,0.33932981]
[1750072493783,1.19571179,106890.0,106880.0,0.32176808]
[1750072494195,1.19571179,106890.0,106880.0,0.33932981]
[1750072494626,1.19571179,106890.0,106880.0,0.32176808]
[1750072494820,1.19571179,106890.0,106880.0,0.33932982]
[1750072495027,1.19571179,106890.0,106880.0,0.32176808]
[1750072495517,1.19563179,106890.0,106880.0,0.32176808]
[1750072495765,1.19563179,106890.0,106880.0,0.33932981]
[1750072496518,1.19563179,106890.0,106880.0,0.32176808]
[1750072496748,1.19563179,106890.0,106880.0,0.33932981]
[1750072497551,1.03319656,106890.0,106880.0,0.33932981]
[1750072497752,1.18627656,106890.0,106880.0,0.33932981]
[1750072498186,1.18627656,106890.0,106880.0,0.32176808]
[1750072498479,1.18627656,106890.0,106880.0,0.33932972]
[1750072499073,1.18627656,106890.0,106880.0,0.32176808]
[1750072499281,1.18627656,106890.0,106880.0,0.33932972]
[1750072500145,1.03319656,106890.0,106880.0,0.33932972]
[1750072500377,1.01448636,106890.0,106880.0,0.33932892]
[1750072500606,1.17688142,106890.0,106880.0,0.32176808]
[1750072500888,1.01448636,106890.0,106880.0,0.33932892]
[1750072501076,1.01538559,106890.0,106880.0,0.32176808]
[1750072501513,1.01538559,106890.0,106880.0,0.33932836]
[1750072502162,0.58179468,106890.0,106880.0,0.33932836]
[1750072502370,1.01538559,106890.0,106880.0,0.33932836]
[1750072502583,1.01538559,106890.0,106880.0,0.32176808]
[1750072502813,0.58179468,106890.0,106880.0,0.33932839]
[1750072503043,0.42875468,106890.0,106880.0,0.33932839]
[1750072503283,0.3970319,106890.0,106880.0,0.75535899]
[1750072503516,0.522153,106890.0,106880.0,0.75535899]
[1750072503742,0.54448812,106890.0,106880.0,0.77291841]
[1750072503958,0.54448812,106890.0,106880.0,0.75535899]
[1750072504166,0.54448812,106890.0,106880.0,0.33932744]
[1750072504603,0.54448812,106890.0,106880.0,0.33932747]
[1750072505466,0.39144812,106890.0,106880.0,0.33932747]
[1750072505681,0.369113,106890.0,106880.0,0.33932747]
[1750072506804,0.369113,106890.0,106880.0,0.32176808]
[1750072507015,0.369113,106890.0,106880.0,0.33932747]
[1750072507445,0.8120587,106890.0,106880.0,0.32382747]
[1750072507652,0.86231264,106890.0,106880.0,0.30626808]
[1750072507897,0.85295793,106890.0,106880.0,0.30626808]
[1750072508559,0.86231272,106890.0,106880.0,0.30626808]
[1750072509197,0.87166752,106890.0,106880.0,0.30626808]
[1750072509408,0.86231264,106890.0,106880.0,0.30626808]
[1750072509837,0.87166752,106890.0,106880.0,0.30626808]
[1750072510472,0.96790928,106890.0,106880.0,0.30626808]
[1750072510692,0.97726434,106890.0,106880.0,0.30626808]
[1750072510893,0.96790928,106890.0,106880.0,0.30626808]
[1750072512134,0.9585544,106890.0,106880.0,0.30626808]
[1750072512391,0.96790928,106890.0,106880.0,0.30626808]
[1750072512598,0.97726434,106890.0,106880.0,0.30626808]
[1750072512801,0.96790928,106890.0,106880.0,0.30626808]
[1750072514311,0.97726434,106890.0,106880.0,0.30626808]
[1750072515808,0.96790928,106890.0,106880.0,0.30626808]
[1750072516022,0.97726434,106890.0,106880.0,0.30626808]
[1750072516692,0.96790928,106890.0,106880.0,0.30626808]
[1750072516905,0.97726425,106890.0,106880.0,0.30626808]
[1750072517374,0.98661939,106890.0,106880.0,0.30626808]
[1750072517611,0.41936702,106890.0,106880.0,0.32256808]
[1750072517850,0.83997752,106890.0,106880.0,0.32256808]
[1750072518073,0.86231264,106890.0,106880.0,0.32256808]
[1750072518539,0.87166761,106890.0,106880.0,0.32256808]
[1750072519205,1.02482752,106890.0,106880.0,0.32256808]
[1750072520255,0.58184164,106890.0,106880.0,0.32256808]
[1750072520459,1.02478734,106890.0,106880.0,0.32256808]
[1750072520666,1.03414231,106890.0,106880.0,0.32256808]
[1750072521091,1.02478734,106890.0,106880.0,0.32256808]
[1750072521293,1.03414231,106890.0,106880.0,0.32256808]
[1750072521509,1.02478734,106890.0,106880.0,0.32256808]
[1750072522331,1.03414231,106890.0,106880.0,0.32256808]
[1750072522543,1.03414231,106890.0,106880.0,0.30626808]
[1750072522742,1.04349745,106890.0,106880.0,0.30626808]
[1750072522957,1.04349737,106890.0,106880.0,0.30626808]
[1750072523808,1.02478734,106890.0,106880.0,0.30626808]
[1750072524231,1.03414222,106890.0,106880.0,0.29106808]
[1750072524653,1.03414222,106890.0,106880.0,0.30686808]
[1750072526364,1.04349719,106890.0,106880.0,0.30686808]
[1750072527224,1.03414222,106890.0,106880.0,0.30686808]
[1750072527892,1.02478734,106890.0,106880.0,0.30686808]
[1750072528111,1.03414231,106890.0,106880.0,0.30686808]
[1750072528319,1.03414222,106890.0,106880.0,0.28637808]
[1750072528527,1.03414222,106890.0,106880.0,0.30177808]
[1750072530340,1.05879728,106890.0,106880.0,0.28637808]
[1750072530582,1.04944222,106890.0,106880.0,0.28637808]
[1750072530892,1.03414222,106890.0,106880.0,0.28637808]
[1750072531311,1.04349728,106890.0,106880.0,0.30277808]
[1750072531686,1.04349719,106890.0,106880.0,0.30277808]
[1750072532283,1.05285233,106890.0,106880.0,0.30277808]
[1750072532518,1.04349719,106890.0,106880.0,0.30277808]
[1750072532952,1.05285225,106890.0,106880.0,0.30277808]
[1750072533144,1.05285286,106890.0,106880.0,0.30277808]
[1750072533354,1.04349763,106890.0,106880.0,0.30277808]
[1750072533739,1.04349763,106890.0,106880.0,0.28277808]
[1750072534448,1.04349763,106890.0,106880.0,0.28257208]
[1750072535283,1.05285286,106890.0,106880.0,0.28257208]
[1750072535658,1.04349763,106890.0,106880.0,0.28257208]
[1750072535857,1.05285277,106890.0,106880.0,0.28257208]
[1750072536359,1.04349763,106890.0,106880.0,0.28257208]
[1750072536565,1.03414257,106890.0,106880.0,0.28257208]
[1750072537556,1.04349763,106890.0,106880.0,0.28257208]
[1750072538000,1.03414257,106890.0,106880.0,0.28257208]
[1750072538220,1.04349763,106890.0,106880.0,0.28723208]
[1750072538420,0.60055166,106890.0,106880.0,0.28723208]
[1750072538629,1.03414257,106890.0,106880.0,0.28723208]
[1750072538832,1.0247876,106890.0,106880.0,0.28723208]
[1750072539038,1.0247876,106890.0,106880.0,0.30303208]
[1750072539214,1.00607793,106890.0,106880.0,0.30303208]
[1750072539622,1.01543255,106890.0,106880.0,0.30303208]
[1750072539832,1.00607793,106890.0,106880.0,0.30303208]
[1750072554032,1.00607793,106890.0,106880.0,0.28723208]
[1750072555330,1.00599793,106890.0,106880.0,0.28723208]
[1750072555557,0.57240702,106890.0,106880.0,0.30293208]
[1750072555790,1.00599793,106890.0,106880.0,0.30293208]
[1750072557309,1.00599793,106890.0,106880.0,0.28723208]
[1750072557743,0.57240702,106890.0,106880.0,0.28723208]
[1750072557963,1.00599793,106890.0,106880.0,0.28723208]
[1750072558420,1.01535264,106890.0,106880.0,0.26617208]
[1750072560872,1.02470752,106890.0,106880.0,0.26617208]
[1750072561090,1.02470743,106890.0,106880.0,0.26617208]
[1750072561723,1.01535264,106890.0,106880.0,0.26617208]
[1750072562777,1.02470752,106890.0,106880.0,0.26617208]
[1750072562983,1.01535264,106890.0,106880.0,0.26617208]
[1750072563654,1.02470752,106890.0,106880.0,0.26617208]
[1750072564755,0.57240702,106890.0,106880.0,0.28177208]